Cogmind - Beta 13 @@@ ROGUE MODE // 2024.05.27 @ 23:09:09 Player: Heliostats Result: Destroyed by G-47 Trooper with Particle Gun Performance ------------- Evolutions (0) 0 Regions Visited (1) 200 Robots Destroyed (23) 115 Value Destroyed (419) 419 Prototype IDs (4) 80 Alien Tech Used (0) 0 Bonus (0) 0 TOTAL SCORE: 814 Bonus ------- None Cogmind --------- Core Integrity 0/250 Matter 168/300 Energy 160/160 System Corruption 5% Temperature Warning (324) Movement Walking (120) Location -10/Materials Parts ------- > --- POWER (1) -------- Light Nuclear Core > --- PROPULSION (2) --- Aluminum Leg Aluminum Leg > --- UTILITY (2) ------ ECM Suite Hacking Suite > --- WEAPON (2) ------- Beam Cannon Beam Cannon > --- INVENTORY (5) ---- Improved Terrain Scanner Light Armor Plating Authchip [Power] Small Laser Grenade Launcher Peak State ------------ > --- POWER ------------ Light Nuclear Core > --- PROPULSION ------- Aluminum Leg Aluminum Leg > --- UTILITY ---------- Improved Heat Sink Hacking Suite > --- WEAPON ----------- Beam Cannon Beam Cannon > --- INVENTORY -------- Improved Terrain Scanner ECM Suite Light Armor Plating Authchip [Power] Grenade Launcher [Rating: 14] Favorites ----------- Power Light Ion Engine Engine Light Ion Engine Power Core Light Nuclear Core Propulsion Aluminum Leg Leg Aluminum Leg Utility Small Storage Unit Device Sensor Array Storage Small Storage Unit Processor Signal Interpreter Hackware Hacking Suite Protection Backup Plating I Weapon Assault Rifle Energy Gun Medium Laser Energy Cannon Beam Cannon Ballistic Gun Assault Rifle Ballistic Cannon Light Cannon Build | -11 -10 ------- Run | Yrd Mat Slots Evolved . | . . Power . | . . Propulsion . | . . Utility . | . . Weapon . | . . Parts Attached 24 | 8 16 Power 2 | 1 1 Engine 1 | 1 . Core 1 | . 1 Reactor . | . . Propulsion 7 | 2 5 Treads . | . . Leg 7 | 2 5 Wheel . | . . Hover . | . . Flight . | . . Utility 9 | 2 7 Device 6 | 1 5 Storage 1 | 1 . Processor 1 | . 1 Hackware 1 | . 1 Protection . | . . Artifact . | . . Weapon 6 | 3 3 Energy Gun 1 | 1 . Energy Cannon 2 | . 2 Ballistic Gun 2 | 2 . Ballistic Cannon 1 | . 1 Launcher . | . . Special Weapon . | . . Impact Weapon . | . . Slashing Weapon . | . . Piercing Weapon . | . . Special Melee Weapon . | . . Unidentified Prototypes . | . . Parts Lost 2 | . 2 Power 1 | . 1 Propulsion 1 | . 1 Utility . | . . Weapon . | . . Highest Loss Streak 2 | . 2 To Critical Strikes . | . . Average Slot Usage (%) 98 | . 98 Engine 11 | . 11 Core 2 | . 2 Leg 27 | . 27 Device 15 | . 15 Storage 7 | . 7 Processor 1 | . 1 Hackware 3 | . 3 Energy Gun 7 | . 7 Energy Cannon 9 | . 9 Ballistic Gun 7 | . 7 Ballistic Cannon 3 | . 3 Naked Turns . | . . Heaviest Build 13 | 13 13 Greatest Support 20 | 20 20 Greatest Overweight (x) 1 | . 1 Average Overweight (x) . | . . Largest Inventory Capacity 8 | 8 8 Average Capacity 6 | 7 6 Most Carried 8 | 5 8 Average Carried 5 | 2 5 Final Capacity 8 | 8 5 Final Carried 5 | 3 5 Class Distribution -------------------- 86% | Mutant 13% | Scavenger-Mutant Dominant Class ---------------- Mutant | -10/Materials Resources | -11 -10 ----------- Run | Yrd Mat Matter Collected 623 | 277 346 Remotely . | . . Salvage Created 689 | 65 624 Parts 52 | 11 41 Haulers Intercepted 2 | . 2 Recyclers Shooed 4 | . 4 Parts Field Recycled . | . . Retrieved Matter . | . . Parts Self-Destructed . | . . Prevented . | . . Kills | -11 -10 ------- Run | Yrd Mat Combat Hostiles Destroyed 10 | . 10 Guns 4 | . 4 Cannons 6 | . 6 Classes Destroyed 8 | 1 7 Worker 1 | . 1 Tunneler 3 | 3 . Hauler 2 | . 2 Recycler 2 | . 2 Operator 2 | . 2 Watcher 3 | . 3 Swarmer 3 | . 3 Grunt 7 | . 7 Best Kill Streak 3 | 2 3 Combat Bots Only 3 | . 3 Max Kills in Single Turn 1 | 1 1 Gunslinging . | . . Exploded . | . . Melee . | . . Uniques/NPCs Destroyed . | . . Combat | -11 -10 -------- Run | Yrd Mat Hostile Shots Fired 64 | . 64 Missed 16 | . 16 Damage Taken 796 | . 796 Core 255 | . 255 Absorbed by Shields . | . . Regen/Repaired (Parts) 10 | . 10 Core Remaining (%) 100 | 100 . Volleys Fired 77 | 7 70 Largest 2 | 2 2 Hottest 120 | 70 120 Shots Fired 146 | 14 132 Gun 103 | 14 89 Cannon 43 | . 43 Launcher . | . . Special . | . . Kinetic 62 | 9 53 Thermal 84 | 5 79 Explosive . | . . Electromagnetic . | . . Robot Hit Streak 9 | 2 9 Robot Miss Streak 5 | 3 5 Penetration Max . | . . Secondary Targets . | . . Shots Hit Robots 84 | 7 77 Core Hits 30 | 3 27 Critical Kills . | . . Critical Parts Destroyed . | . . Critical Strikes 5 | . 5 Burn 5 | . 5 Melee Attacks . | . . Impact . | . . Slashing . | . . Piercing . | . . Sneak Attacks . | . . Combat Hostiles . | . . Follow-up Attacks . | . . Damage Inflicted 1167 | 85 1082 Guns 784 | 85 699 Cannons 383 | . 383 Explosions . | . . Melee . | . . Ramming . | . . Kinetic 497 | 73 424 Thermal 670 | 12 658 Explosive . | . . Electromagnetic . | . . Impact . | . . Slashing . | . . Piercing . | . . Highest Corruption 5 | . 5 Average Corruption 1 | . 1 Corruption Purged . | . . Corruption Blocked . | . . Effects 16 | . 16 Message Errors 4 | . 4 Matter Fused 4 | . 4 Heat Flow Errors 1 | . 1 Energy Discharges 3 | . 3 Data Loss (minor) 3 | . 3 Alerts 1 | . 1 Overload Shots . | . . Overflow Damage . | . . Projectiles . | . . Explosions . | . . Melee . | . . Knockbacks . | . . Impact . | . . Kinetic . | . . Secondary . | . . Self-Inflicted Damage 94 | . 94 Shots 1 | . 1 Rammed . | . . Targets Rammed . | . . Kicked . | . . Crushed . | . . Highest Temperature 656 | 18 656 Average Temperature 114 | 9 120 Received Heat Transfer 249 | . 249 Effects 15 | . 15 Shutdowns 1 | . 1 Interference 2 | . 2 Matter Decay 2 | . 2 Damage (minor) 3 | . 3 Damage (major) 4 | . 4 Damage (core) 3 | . 3 Siege Activations . | . . Robots Corrupted . | . . Combat Hostiles . | . . Parts Fried . | . . Impact Corruptions . | . . Robots Melted . | . . Combat Hostiles . | . . Parts Melted 4 | . 4 Heat Transferred 2072 | 37 2035 Parts Sabotaged . | . . Parts Stolen . | . . Parts Stripped . | . . Power Chain Reactions . | . . Alert | -11 -10 ------- Run | Yrd Mat Peak Influence 252 | 15 252 Initial 9 | . 9 Average 91 | 7 100 Maximum Alert Level 1 | . 1 Low Security (%) 86 | 100 84 Level 1 13 | . 15 Level 2 . | . . Level 3 . | . . Level 4 . | . . Level 5 . | . . High Security . | . . Max Security . | . . Squads Dispatched 3 | . 3 Investigation 1 | . 1 Extermination . | . . Reinforcement 2 | . 2 Assault . | . . Garrison . | . . Intercept . | . . Searches Triggered . | . . Construction Impeded . | . . Haulers Reinforced . | . . Active Scanning Responses . | . . Cargo Convoy Interrupts . | . . Stealth | -11 -10 --------- Run | Yrd Mat Distress Signals . | . . Communications Jammed . | . . Distress Signals . | . . Times Spotted 17 | . 17 Peak Tracking Total 3 | . 3 Tactical Retreats 1 | . 1 Traps | -11 -10 ------- Run | Yrd Mat Traps Triggered 5 | . 5 Indirectly . | . . Trap Hack Attempts . | . . Triggered . | . . Disarmed . | . . Reprogrammed . | . . Reused . | . . Traps Extracted . | . . Installed . | . . Triggered . | . . Machines | -11 -10 ---------- Run | Yrd Mat Machines Disabled 2 | . 2 Max in Single Turn 2 | . 2 Machines Repaired . | . . Machines Dismantled . | . . Machines Sabotaged . | . . Overloaded Fab Kills . | . . Hacking | -11 -10 --------- Run | Yrd Mat Machines Accessed 8 | . 8 Terminals 5 | . 5 Fabricators . | . . Repair Stations 1 | . 1 Recycling Units 2 | . 2 Scanalyzers . | . . Garrison Access . | . . Total Hacks 22 | . 22 Successful 13 | . 13 Failed 9 | . 9 Catastrophic 1 | . 1 Database Lockouts . | . . Manual 2 | . 2 Terminals 13 | . 13 Fabricators . | . . Repair Stations 4 | . 4 Recycling Units 5 | . 5 Scanalyzers . | . . Garrison Access . | . . Terminal Hacks 5 | . 5 Prototype ID Bank 2 | . 2 Locate Traps 1 | . 1 Dispatch Records 1 | . 1 Zone Layout 1 | . 1 Fabricator Hacks . | . . Repair Station Hacks 3 | . 3 Scan Component 1 | . 1 Repair 1 | . 1 Refit 1 | . 1 Recycling Unit Hacks 5 | . 5 Process 1 | . 1 Report Inventory 2 | . 2 Retrieve Matter 1 | . 1 Retrieve Components 1 | . 1 Scanalyzer . | . . Garrison Access Hacks . | . . Unauthorized Hacks . | . . Terminals . | . . Fabricators . | . . Repair Stations . | . . Recycling Units . | . . Scanalyzers . | . . Garrison Access . | . . Data Cores Recovered . | . . Used . | . . Hacking Detections 5 | . 5 Full Trace Events 3 | . 3 Feedback Events . | . . Feedback Blocked . | . . Robot Schematics Acquired . | . . Robots Built . | . . Authchips . | . . Time . | . . Total Robot Build Rating . | . . Part Schematics Acquired . | . . Parts Built . | . . Authchips . | . . Time . | . . Total Part Build Rating . | . . Parts Repaired 1 | . 1 Time 26 | . 26 Parts Recycled . | . . Recycled Matter 6 | . 6 Retrieved Matter 6 | . 6 Retrieved Components 6 | . 6 Parts Scanalyzed . | . . Part Schematics Acquired . | . . Parts Damaged . | . . Bothacking | -11 -10 ------------ Run | Yrd Mat Used RIF Installer . | . . Robots Hacked . | . . Non-combat . | . . Combat . | . . Robot Hacks Applied . | . . Relay Couplers Released . | . . Fabnet Peak Effective % . | . . Robots Rewired . | . . Allies Hacked . | . . Hacks Repelled . | . . Allies | -11 -10 -------- Run | Yrd Mat Total Allies . | . . Largest Group . | . . Highest-Rated Group . | . . Highest-Rated Ally . | . . Total Orders . | . . Ally Attacks . | . . Total Damage . | . . Kills . | . . Allies Corrupted . | . . Allies Melted . | . . Intel | -11 -10 ------- Run | Yrd Mat Robot Analysis Total . | . . Derelict Logs Recovered . | . . Drone Launches . | . . Drone Recoveries . | . . Exploration | -11 -10 ------------- Run | Yrd Mat Turns Passed 1282 | 119 1163 Spaces Moved 793 | 78 715 Core 21 | 21 . Treads . | . . Legs 772 | 57 715 Wheels . | . . Hover . | . . Flight . | . . Fastest Speed 50 | 50 120 Average Speed 118 | 101 120 Slowest Speed 190 | 120 190 Overloaded Moves . | . . Propulsion Burnouts . | . . Robots Hopped . | . . Cave-ins Triggered . | . . Exploration Rate (%) 51 | 5 98 Regions Visited 1 Branch Regions . Pre-discovered Areas . | . . Known Exits Taken . | . . Unknown Exits Taken 1 | 1 . Scrap Searched . | . . Spaces Dug . | . . Terrain Destroyed 41 | . 41 Melee . | . . Projectile . | . . AOE 41 | . 41 Terrain Rammed . | . . Walls Destroyed . | . . Machines Disabled . | . . Actions | -11 -10 --------- Run | Yrd Mat Total 991 | 104 887 Wait 64 | . 64 Move 792 | 77 715 Hop . | . . Pick Up 17 | 11 6 Fast Attach 9 | . 9 Attach 8 | 7 1 Detach 1 | . 1 Swap 7 | 1 6 Drop 16 | 1 15 Fire 77 | 7 70 Melee . | . . Ram . | . . Kick . | . . Crush . | . . Escape Stasis . | . . Rewire . | . . Trap . | . . Miscellaneous . | . . Route ------- -11/Scrapyard -10/Materials (discovered 4 exits: [*Mat x3] / [*Min]) History --------- Turn | Location | Event 15 | -11/Scrapyard | Discovered new exit (range 16) 120 | -11/Scrapyard | Entered Materials 311 | -10/Materials | Build established: Mutant 360 | -10/Materials | Discovered new exit (range 15) 525 | -10/Materials | Discovered new exit (range 15) 837 | -10/Materials | Discovered new exit (range 4) 884 | -10/Materials | Repaired Sensor Array 1096 | -10/Materials | Core integrity fell below 50% 1114 | -10/Materials | Core integrity fell below 20% 1240 | -10/Materials | Discovered new exit (range 10) 1283 | -10/Materials | Destroyed by G-47 Trooper with Particle Gun Last Messages --------------- 01228_ W-16 Scout destroyed. 01230_ Acquired 10 matter. 01240_ EXIT=FOUND 01245_ Triggered Shock Trap. 01245_ The floor emits a surge of raw power. 01245_ System corrupted (+1). 01246_ Triggered Shock Trap. 01246_ The floor emits a surge of raw power. 01246_ System corrupted (+1). 01261_ Connecting with Terminal... >>Layout(Zone) Retrieving Zone 7Q layout... Downloaded map data. 01262_ System corrupted: Component data lost. 01267_ Acquired Sml. Laser. 01274_ Triggered Shock Trap. 01274_ The floor emits a surge of raw power. 01274_ System corrupted (+1). 01278_ System corrupted: Heat flow error (+274). 01281_ U-05 Engineer lays Concrete. Map ----- +----------------------------------------------------+ | ???# # ! #???????# [!! ! ## | | ???# ####+########### [! = ## | | ???# ! + ### | | ???# ##### =######## ### | | ???# #???# #?########+######+## | | ???# #???# #?# """ # | | ???# #???# #?# """ + | | ???# #???# #?# """ # | | ???# #???# #?# # ####### | | ???# #???#### #?# # #?????# " | | ???# #??????# #?# + #?????#"" | | ??##+######## #?###+#### #??????## | | ??# # #???# #??# ##?#??#?? | | ??# # ##### ### ######## | | ??# # # ! | | ??# + # ! | | ??# # # | | ??# ###+####### # | | ??# # ######## | | ??# # #??????# | | ??########### #??????# """ | | ????????????# ######?# """"" | | ????????????# #?????## """"" | | ?????######## #??????# """"" | | ?????# ## g #??????# """ | | ?????# @/ #??????######## | | ?????# ## #???#?????????? | | ?????# ###########?????????#???? | | ?????# u #??????????????#????????? | | ?????## ######???????????????????? | | ??????# ^# #???????????????????? | | ??????# # #????????????????#??? | | ??????# + =#???????????????????? | | ??????# # #???????????????????? | | ??????# < # #???????????#???????? | | ??????# #" #???????????????????? | | ??????#####T #???????????????????? | | ??????????#" #???????????????????? | | ??????????# #???????????????????? | | ??????????######???????????????????? | | ???????????????????????????????????? | | ???????????????????????????????????? | | ???????????????????????????????????? | | ???????????????????????????????????? | | ???????????????????????????????????? | | | | | | | | | | | +----------------------------------------------------+ Best States ------------- Heat Dissipation 39 Energy Generation 14 Energy Capacity 160 Matter Stores 300 Matter Capacity 300 Sight Range 16 Robot Scan Range 14 Terrain Scan Range 16 Terrain Scan Density 10 ECM Strength 1 Armor Coverage 80 Evasion (%) 55 Offensive Hacking 10 Authchip Count 1 Item Schematics ----------------- None Robot Schematics ------------------ None Fabricated ------------ Nothing Alien Tech Used ----------------- None Achievements -------------- None Challenges ------------ None Game ------ Seed AnalysisRelayExoskeleton Manual? 0 Play Time 00:13:42 Cumulative 12.2 hours Start 2024.05.27 @ 22:54:50 End 2024.05.27 @ 23:09:09 Sessions 1 Manual Loads 0 Difficulty Rogue Special Mode None Game No. 15 Rogue 3 Adventurer 12 Explorer 0 Win Type - Total 0 Types 0/0/0/0/0/0/0/0/0 Lore% 17 Gallery% 19 Achievement% 15 Wizard Run 0 Options --------- Layout 1 ASCII 0 Keyboard 0 Movement Mouse Keybinds 0 Fullscreen 2 Font 24/Smallcaps Map View 50x35 Zoom Use 0% Tactical HUD 1 Map Filters NONE Filters NONE Steam 1 RUN: 00afb849-ca69-4ede-b154-18f528c7cdd1